[Event "EYCC G10-ch 2024"]
[Site "Prague"]
[Date "2024.08.28"]
[Round "6.7"]
[White "Russieva, Svitlana"]
[Black "Nguyen Doan, Bao Anh Angelina"]
[Result "1-0"]
[ECO "B24"]
[WhiteElo "1597"]
[BlackElo "1659"]
[Annotator "NA RC COMBH"]
[PlyCount "59"]
[EventDate "2024.08.19"]
[EventType "swiss"]
[EventCountry "CZE"]
[SourceTitle "playchess.com"]
[Source "ChessBase"]
[SourceQuality "1"]
[TimeControl "5400+30"]

1. e4 {[%emt 0:00:02]} c5 {[%emt 0:00:10]} 2. Nc3 {[%emt 0:00:07]} Nc6 {[%emt 0:00:06]} 3. d3 {[%emt 0:00:34]} d6 {[%emt 0:00:31]} 4. g3 {[%emt 0:00:11]} g6 {[%emt 0:00:18]} 5. Bg2 {[%emt 0:00:20]} e5 {[%emt 0:00:22]} 6. f4 {[%emt 0:01:17]} Nge7 {[%emt 0:01:31]} 7. Nf3 {[%emt 0:00:58]} Bg7 {[%emt 0:00:14]} 8. O-O {[%emt 0:00:51]} O-O {[%emt 0:00:38]} 9. f5 {[%emt 0:02:16]} gxf5 {[%emt 0:02:16]} 10. Nh4 {[%emt 0:01:40]} fxe4 {[%emt 0:04:53]} 11. dxe4 {[%emt 0:01:22]} f5 12. Bg5 {[%emt 0:09:59]} h6 {[%emt 0:17:43]} 13. Bxe7 {[%emt 0:03:18]} Nxe7 {[%emt 0:05:09]} 14. Nd5 {[%emt 0:05:25]} Nxd5 {[%emt 0:06:59]} 15. Qxd5+ {[%emt 0:01:14]} Kh7 {[%emt 0:01:07]} 16. exf5 {[%emt 0:01:34]} Rf6 {[%emt 0:05:36]} 17. g4 {[%emt 0:03:13]} Rb8 {[%emt 0:08:14]} 18. Ng6 {[%emt 0:02:27]} b5 {[%emt 0:03:59]} 19. Qd3 {[%emt 0:03:15]} c4 {[%emt 0:03:20]} 20. Qh3 {[%emt 0:01:19]} Bb7 {[%emt 0:06:01]} 21. g5 {[%emt 0:05:54]} Rf7 {[%emt 0:03:45]} 22. f6 {[%emt 0:03:09]} Bc8 {[%emt 0:08:04]} 23. Qh5 {[%emt 0:05:28]} Qb6+ {[%emt 0:04:30]} 24. Kh1 {[%emt 0:00:28]} Bb7 {[%emt 0:01:18]} 25. Nf4 {[%emt 0:03:13]} Bxg2+ {[%emt 0:02:29]} 26. Nxg2 {[%emt 0:00:38]} Rc7 {[%emt 0:01:48]} 27. fxg7 {[%emt 0:03:43]} Rxg7 {[%emt 0:01:21]} 28. gxh6 {[%emt 0:03:10]} Rgg8 {[%emt 0:01:49]} 29. Rf7+ {[%emt 0:00:47]} Kh8 {[%emt 0:00:10]} 30. Qf5 {[%emt 0:00:18]} 1-0

[Event "EYCC G10-ch 2024"]
[Site "Prague"]
[Date "2024.08.28"]
[Round "6.8"]
[White "Paunescu, Aida"]
[Black "Babazade, Khadija"]
[Result "1/2-1/2"]
[ECO "D02"]
[WhiteElo "1603"]
[BlackElo "1509"]
[Annotator "NA RC COMBH"]
[PlyCount "80"]
[EventDate "2024.08.19"]
[EventType "swiss"]
[EventCountry "CZE"]
[SourceTitle "playchess.com"]
[Source "ChessBase"]
[SourceQuality "1"]
[TimeControl "5400+30"]

1. d4 {[%emt 0:00:05]} d5 {[%emt 0:00:05]} 2. Nf3 {[%emt 0:00:18]} Nf6 {[%emt 0:00:08]} 3. Bf4 {[%emt 0:00:50]} c5 {[%emt 0:00:52]} 4. e3 {[%emt 0:00:40]} Nc6 {[%emt 0:01:16]} 5. c3 {[%emt 0:00:59]} Qb6 {[%emt 0:01:19]} 6. b3 cxd4 {[%emt 0:24:28]} 7. exd4 {[%emt 0:13:59]} Bf5 {[%emt 0:13:04]} 8. Bd3 {[%emt 0:03:33]} Bg6 {[%emt 0:11:28]} 9. h3 {[%emt 0:05:19]} e6 {[%emt 0:02:21]} 10. O-O {[%emt 0:05:24]} Be7 {[%emt 0:02:06]} 11. Qe2 {[%emt 0:07:22]} O-O {[%emt 0:01:30]} 12. Nbd2 {[%emt 0:02:10]} Rad8 {[%emt 0:08:44]} 13. Ne5 {[%emt 0:05:24]} Nxe5 {[%emt 0:05:11]} 14. Bxe5 {[%emt 0:04:27]} Bd6 {[%emt 0:02:34]} 15. f4 {[%emt 0:05:07]} Nd7 {[%emt 0:06:06]} 16. Bxd6 {[%emt 0:08:51]} Qxd6 {[%emt 0:00:14]} 17. f5 {[%emt 0:00:56]} exf5 {[%emt 0:00:58]} 18. Bxf5 {[%emt 0:00:48]} Nf6 {[%emt 0:03:50]} 19. Qd3 {[%emt 0:05:59]} Rfe8 {[%emt 0:03:48]} 20. Bxg6 {[%emt 0:04:48]} hxg6 {[%emt 0:00:07]} 21. Rad1 {[%emt 0:01:01]} Ne4 {[%emt 0:01:09]} 22. c4 {[%emt 0:00:43]} dxc4 {[%emt 0:03:31]} 23. Nxc4 {[%emt 0:01:21]} Qd5 {[%emt 0:00:14]} 24. Qf3 {[%emt 0:02:10]} Nf6 {[%emt 0:01:16]} 25. Rd2 {[%emt 0:06:00]} b5 {[%emt 0:01:28]} 26. Ne3 {[%emt 0:03:10]} Qg5 {[%emt 0:00:29]} 27. Rd3 {[%emt 0:00:53]} Re4 {[%emt 0:00:46]} 28. Nc2 {[%emt 0:02:04]} Rd5 {[%emt 0:00:58]} 29. Qf2 a5 {[%emt 0:01:03]} 30. Qd2 {[%emt 0:02:45]} Qxd2 {[%emt 0:00:42]} 31. Rxd2 {[%emt 0:00:05]} b4 {[%emt 0:00:14]} 32. Rf3 {[%emt 0:00:54]} g5 {[%emt 0:01:04]} 33. Rfd3 {[%emt 0:00:42]} g4 {[%emt 0:00:40]} 34. Ne3 {[%emt 0:00:12]} Rd7 {[%emt 0:00:53]} 35. Kf2 {[%emt 0:06:11]} gxh3 {[%emt 0:00:06]} 36. gxh3 {[%emt 0:00:03]} Rf4+ {[%emt 0:00:34]} 37. Kg2 {[%emt 0:01:37]} Ne4 {[%emt 0:00:16]} 38. Rc2 {[%emt 0:00:39]} Nc3 {[%emt 0:00:45]} 39. Rcd2 {[%emt 0:00:48]} Ne4 {[%emt 0:00:12]} 40. Rc2 {[%emt 0:00:29]} Nc3 {[%emt 0:00:04]} 1/2-1/2

[Event "EYCC G10-ch 2024"]
[Site "Prague"]
[Date "2024.08.28"]
[Round "6.9"]
[White "Saltkhutsishvili, Sara"]
[Black "Serradell Munoz, Silvia"]
[Result "0-1"]
[ECO "B27"]
[WhiteElo "1535"]
[BlackElo "1619"]
[Annotator "NA RC COMBH"]
[PlyCount "132"]
[EventDate "2024.08.19"]
[EventType "swiss"]
[EventCountry "CZE"]
[SourceTitle "playchess.com"]
[Source "ChessBase"]
[SourceQuality "1"]
[TimeControl "5400+30"]

1. e4 {[%emt 0:00:08]} c5 {[%emt 0:00:25]} 2. Nf3 {[%emt 0:00:48]} g6 {[%emt 0:00:33]} 3. d4 {[%emt 0:05:31]} cxd4 {[%emt 0:00:52]} 4. Qxd4 {[%emt 0:07:14]} Nf6 {[%emt 0:01:40]} 5. Nc3 {[%emt 0:04:58]} Nc6 {[%emt 0:02:30]} 6. Qd1 Bg7 {[%emt 0:01:30]} 7. Bc4 {[%emt 0:15:47]} O-O {[%emt 0:01:23]} 8. O-O {[%emt 0:06:17]} b6 {[%emt 0:04:50]} 9. Bf4 {[%emt 0:10:36]} Bb7 {[%emt 0:02:44]} 10. Re1 {[%emt 0:03:36]} Rc8 {[%emt 0:04:13]} 11. Bb3 {[%emt 0:05:23]} Nh5 {[%emt 0:05:07]} 12. Bg3 {[%emt 0:09:18]} Nxg3 {[%emt 0:01:25]} 13. hxg3 {[%emt 0:02:05]} Na5 {[%emt 0:03:09]} 14. Qd3 {[%emt 0:07:59]} Qc7 {[%emt 0:02:16]} 15. Nb5 {[%emt 0:03:12]} Ba6 {[%emt 0:01:59]} 16. Nxc7 {[%emt 0:01:27]} Bxd3 {[%emt 0:00:08]} 17. Nd5 {[%emt 0:00:18]} Nxb3 {[%emt 0:01:44]} 18. axb3 {[%emt 0:00:50]} Rxc2 {[%emt 0:00:14]} 19. Nb4 {[%emt 0:01:36]} Bxb2 {[%emt 0:00:36]} 20. Nxc2 {[%emt 0:00:26]} Bxa1 {[%emt 0:00:08]} 21. Nxa1 {[%emt 0:00:16]} Rc8 {[%emt 0:01:05]} 22. Ne5 {[%emt 0:02:40]} Bb5 {[%emt 0:00:47]} 23. b4 {[%emt 0:00:30]} d6 {[%emt 0:00:29]} 24. Nf3 {[%emt 0:00:09]} Rc4 {[%emt 0:00:34]} 25. Nb3 {[%emt 0:02:39]} Rxb4 {[%emt 0:02:40]} 26. Nbd4 {[%emt 0:00:49]} Kg7 {[%emt 0:01:20]} 27. Nxb5 {[%emt 0:00:53]} Rxb5 {[%emt 0:00:06]} 28. Nd4 {[%emt 0:00:57]} Rc5 {[%emt 0:01:05]} 29. Ra1 {[%emt 0:00:46]} Ra5 {[%emt 0:00:08]} 30. Rxa5 {[%emt 0:00:42]} bxa5 {[%emt 0:00:06]} 31. Kf1 {[%emt 0:00:14]} Kf6 {[%emt 0:00:15]} 32. f4 {[%emt 0:00:23]} e5 {[%emt 0:00:09]} 33. Nc6 {[%emt 0:00:37]} a4 {[%emt 0:00:07]} 34. Ke2 {[%emt 0:00:17]} exf4 {[%emt 0:00:44]} 35. gxf4 {[%emt 0:00:32]} Ke6 {[%emt 0:00:11]} 36. Kd3 {[%emt 0:00:32]} d5 {[%emt 0:00:57]} 37. e5 {[%emt 0:01:07]} Kf5 {[%emt 0:00:17]} 38. Kd4 {[%emt 0:01:48]} Kxf4 {[%emt 0:00:14]} 39. Kxd5 {[%emt 0:00:13]} a3 {[%emt 0:00:19]} 40. Nb4 {[%emt 0:00:13]} h5 {[%emt 0:00:29]} 41. Kd6 {[%emt 0:00:50]} h4 {[%emt 0:00:21]} 42. Nd3+ {[%emt 0:01:24]} Kg3 {[%emt 0:00:27]} 43. Ne1 {[%emt 0:00:37]} a2 {[%emt 0:00:04]} 44. Nc2 {[%emt 0:00:09]} Kxg2 {[%emt 0:00:03]} 45. Ke7 {[%emt 0:00:05]} h3 {[%emt 0:00:12]} 46. Kxf7 {[%emt 0:00:11]} h2 {[%emt 0:00:05]} 47. e6 {[%emt 0:00:05]} h1=Q {[%emt 0:00:16]} 48. e7 {[%emt 0:00:04]} Qf1+ {[%emt 0:00:27]} 49. Ke6 {[%emt 0:00:19]} Qe2+ {[%emt 0:00:19]} 50. Kf7 {[%emt 0:00:06]} Qxc2 {[%emt 0:02:26]} 51. e8=Q {[%emt 0:00:11]} Qf5+ {[%emt 0:00:50]} 52. Kg8 {[%emt 0:00:15]} Qd5+ {[%emt 0:00:55]} 53. Kh7 {[%emt 0:00:06]} Qh5+ {[%emt 0:00:24]} 54. Kg8 {[%emt 0:00:10]} a1=Q {[%emt 0:00:18]} 55. Qc6+ {[%emt 0:00:25]} Kh3 {[%emt 0:00:57]} 56. Qd7+ {[%emt 0:00:35]} Qf5 {[%emt 0:00:48]} 57. Qh7+ {[%emt 0:01:21]} Kg4 {[%emt 0:00:07]} 58. Qc7 {[%emt 0:01:00]} Qa2+ {[%emt 0:00:16]} 59. Kg7 {[%emt 0:00:30]} Qae6 {[%emt 0:00:49]} 60. Qxa7 {[%emt 0:00:36]} Qd7+ {[%emt 0:00:08]} 61. Qxd7 {[%emt 0:01:28]} Qxd7+ {[%emt 0:00:10]} 62. Kxg6 {[%emt 0:00:06]} Qf5+ {[%emt 0:00:13]} 63. Kh6 {[%emt 0:00:12]} Qg5+ {[%emt 0:00:09]} 64. Kh7 {[%emt 0:00:05]} Kf5 {[%emt 0:00:09]} 65. Kh8 {[%emt 0:00:04]} Kf6 {[%emt 0:00:06]} 66. Kh7 {[%emt 0:00:03]} Qg7# {[%emt 0:00:04]} 0-1

[Event "EYCC G10-ch 2024"]
[Site "Prague"]
[Date "2024.08.28"]
[Round "6.10"]
[White "Bhaumik, Mehr"]
[Black "Smilic, Nina"]
[Result "1-0"]
[ECO "D00"]
[WhiteElo "1606"]
[BlackElo "1515"]
[Annotator "NA RC COMBH"]
[PlyCount "116"]
[EventDate "2024.08.19"]
[EventType "swiss"]
[EventCountry "CZE"]
[SourceTitle "playchess.com"]
[Source "ChessBase"]
[SourceQuality "1"]
[TimeControl "5400+30"]

1. d4 {[%emt 0:00:07]} d5 {[%emt 0:00:06]} 2. Nc3 {[%emt 0:00:14]} Nf6 {[%emt 0:00:11]} 3. Bf4 {[%emt 0:00:30]} a6 {[%emt 0:00:16]} 4. e3 {[%emt 0:00:30]} Bf5 {[%emt 0:00:39]} 5. Bd3 {[%emt 0:02:31]} Bg6 {[%emt 0:01:36]} 6. Nf3 {[%emt 0:02:58]} e6 {[%emt 0:01:22]} 7. Ne5 {[%emt 0:06:52]} Bxd3 {[%emt 0:05:24]} 8. cxd3 {[%emt 0:00:11]} c5 9. dxc5 {[%emt 0:13:49]} Bxc5 {[%emt 0:05:09]} 10. d4 {[%emt 0:00:45]} Bb4 {[%emt 0:00:14]} 11. Qa4+ {[%emt 0:00:14]} Nbd7 {[%emt 0:01:12]} 12. Qxb4 {[%emt 0:05:02]} Nxe5 {[%emt 0:11:20]} 13. Bxe5 {[%emt 0:01:11]} Ra7 {[%emt 0:11:37]} 14. Qa4+ {[%emt 0:03:55]} Qd7 {[%emt 0:02:24]} 15. Qxd7+ {[%emt 0:00:17]} Nxd7 {[%emt 0:01:22]} 16. Bd6 {[%emt 0:02:13]} Nf6 {[%emt 0:04:27]} 17. Ke2 {[%emt 0:00:42]} Kd7 {[%emt 0:00:24]} 18. Bg3 {[%emt 0:01:06]} b5 {[%emt 0:03:35]} 19. Rac1 {[%emt 0:02:18]} Nh5 {[%emt 0:02:12]} 20. Rc2 {[%emt 0:03:16]} Nxg3+ {[%emt 0:00:15]} 21. hxg3 {[%emt 0:00:13]} h6 {[%emt 0:00:29]} 22. Rhc1 {[%emt 0:00:34]} Rb8 {[%emt 0:05:26]} 23. b4 {[%emt 0:03:31]} Kd8 {[%emt 0:04:57]} 24. e4 {[%emt 0:04:00]} Rd7 {[%emt 0:03:20]} 25. Kd3 {[%emt 0:03:50]} Rb6 {[%emt 0:03:47]} 26. e5 {[%emt 0:01:54]} Ke7 {[%emt 0:04:40]} 27. Ne2 {[%emt 0:00:33]} g6 {[%emt 0:01:26]} 28. Rc6 {[%emt 0:01:16]} Rdb7 {[%emt 0:01:33]} 29. Rc7+ {[%emt 0:01:49]} Kd8 {[%emt 0:04:10]} 30. Rxb7 {[%emt 0:00:34]} Rxb7 {[%emt 0:00:11]} 31. Rc6 {[%emt 0:00:07]} Ra7 {[%emt 0:00:30]} 32. Nf4 {[%emt 0:01:24]} Kd7 {[%emt 0:00:46]} 33. Rc5 {[%emt 0:03:48]} Kd8 {[%emt 0:03:06]} 34. g4 {[%emt 0:02:08]} a5 {[%emt 0:05:54]} 35. Rxb5 {[%emt 0:02:21]} axb4 {[%emt 0:00:11]} 36. Rxb4 {[%emt 0:01:27]} Rxa2 {[%emt 0:00:24]} 37. Ke3 {[%emt 0:00:31]} Ra3+ {[%emt 0:00:33]} 38. Nd3 {[%emt 0:00:15]} Kd7 {[%emt 0:01:43]} 39. Rb8 {[%emt 0:00:41]} Ke7 {[%emt 0:01:08]} 40. Rh8 {[%emt 0:00:41]} Rb3 {[%emt 0:00:56]} 41. Rxh6 {[%emt 0:02:32]} Kf8 {[%emt 0:00:36]} 42. Rh8+ {[%emt 0:00:51]} Kg7 {[%emt 0:00:43]} 43. Rc8 {[%emt 0:00:20]} Ra3 {[%emt 0:02:27]} 44. Kd2 {[%emt 0:02:31]} Ra2+ {[%emt 0:00:44]} 45. Rc2 {[%emt 0:00:08]} Ra4 {[%emt 0:00:13]} 46. Ke3 {[%emt 0:00:16]} Ra3 {[%emt 0:00:07]} 47. Rd2 {[%emt 0:01:34]} Kh6 {[%emt 0:01:03]} 48. Kf4 {[%emt 0:00:55]} Ra4 {[%emt 0:01:08]} 49. Nc5 {[%emt 0:00:22]} Ra3 {[%emt 0:01:04]} 50. Rd3 {[%emt 0:00:28]} Ra2 {[%emt 0:00:33]} 51. Kg3 {[%emt 0:00:21]} Kg7 {[%emt 0:01:25]} 52. Nd7 {[%emt 0:00:51]} Rb2 {[%emt 0:00:48]} 53. Nf6 {[%emt 0:00:12]} Rb4 {[%emt 0:01:05]} 54. f4 {[%emt 0:01:51]} Ra4 {[%emt 0:01:15]} 55. f5 {[%emt 0:01:36]} Rb4 {[%emt 0:03:30]} 56. fxe6 {[%emt 0:02:12]} fxe6 {[%emt 0:00:12]} 57. Kf4 {[%emt 0:03:38]} Rb2 {[%emt 0:02:03]} 58. Kg5 {[%emt 0:01:45]} Rb7 1-0

[Event "EYCC G10-ch 2024"]
[Site "Prague"]
[Date "2024.08.28"]
[Round "6.11"]
[White "Kiryttopoulou, Eleonora Kaisa"]
[Black "Horodna, Anna"]
[Result "1-0"]
[ECO "B40"]
[WhiteElo "1525"]
[BlackElo "1603"]
[Annotator "NA RC COMBH"]
[PlyCount "83"]
[EventDate "2024.08.19"]
[EventType "swiss"]
[EventCountry "CZE"]
[SourceTitle "playchess.com"]
[Source "ChessBase"]
[SourceQuality "1"]
[TimeControl "5400+30"]

1. e4 {[%emt 0:00:04]} c5 {[%emt 0:00:11]} 2. Nf3 {[%emt 0:00:04]} e6 {[%emt 0:00:31]} 3. Bc4 {[%emt 0:00:39]} a6 {[%emt 0:01:03]} 4. Nc3 {[%emt 0:01:15]} b5 {[%emt 0:01:38]} 5. Be2 {[%emt 0:01:36]} Bb7 {[%emt 0:02:41]} 6. d3 {[%emt 0:04:12]} Be7 {[%emt 0:04:58]} 7. O-O {[%emt 0:01:00]} Nf6 {[%emt 0:02:48]} 8. e5 {[%emt 0:03:16]} Nd5 {[%emt 0:00:09]} 9. Nxd5 {[%emt 0:00:57]} Bxd5 10. h3 {[%emt 0:05:57]} d6 {[%emt 0:10:28]} 11. exd6 {[%emt 0:02:03]} Qxd6 {[%emt 0:04:31]} 12. Nh2 {[%emt 0:02:02]} O-O {[%emt 0:02:19]} 13. Bf3 {[%emt 0:00:34]} Nc6 {[%emt 0:03:51]} 14. Bxd5 {[%emt 0:03:30]} exd5 {[%emt 0:00:31]} 15. b3 {[%emt 0:02:40]} f5 {[%emt 0:05:58]} 16. Bb2 {[%emt 0:04:10]} d4 {[%emt 0:01:41]} 17. Nf3 {[%emt 0:01:22]} Rad8 {[%emt 0:03:57]} 18. Re1 {[%emt 0:01:59]} Bf6 {[%emt 0:02:51]} 19. Bc1 {[%emt 0:03:34]} f4 {[%emt 0:03:45]} 20. Re4 {[%emt 0:04:01]} Be7 {[%emt 0:07:18]} 21. Qe2 {[%emt 0:02:46]} Rf6 {[%emt 0:10:48]} 22. Bd2 {[%emt 0:02:15]} Rdf8 {[%emt 0:03:54]} 23. Re1 {[%emt 0:00:59]} Bd8 {[%emt 0:04:25]} 24. Re6 {[%emt 0:02:51]} Qd7 {[%emt 0:02:54]} 25. Rxf6 {[%emt 0:06:00]} Rxf6 {[%emt 0:00:09]} 26. Ng5 {[%emt 0:01:30]} Be7 {[%emt 0:03:04]} 27. Qe4 {[%emt 0:02:12]} Rg6 {[%emt 0:04:35]} 28. h4 {[%emt 0:07:48]} f3 {[%emt 0:03:54]} 29. Qxf3 {[%emt 0:02:11]} Bxg5 {[%emt 0:00:39]} 30. Bxg5 {[%emt 0:00:13]} Re6 {[%emt 0:00:36]} 31. Rxe6 {[%emt 0:10:54]} Qxe6 {[%emt 0:00:21]} 32. a3 {[%emt 0:03:29]} h6 {[%emt 0:00:49]} 33. Bf4 {[%emt 0:02:06]} a5 {[%emt 0:03:08]} 34. Qe4 {[%emt 0:02:03]} Qxe4 {[%emt 0:00:42]} 35. dxe4 {[%emt 0:00:09]} a4 {[%emt 0:00:34]} 36. bxa4 {[%emt 0:06:16]} bxa4 {[%emt 0:00:04]} 37. Kf1 {[%emt 0:00:19]} Kf7 {[%emt 0:01:09]} 38. Ke2 {[%emt 0:01:53]} c4 {[%emt 0:00:16]} 39. f3 {[%emt 0:01:21]} g6 {[%emt 0:01:19]} 40. Bg3 {[%emt 0:01:49]} Nb4 {[%emt 0:01:20]} 41. axb4 {[%emt 0:02:09]} a3 {[%emt 0:00:29]} 42. Be5 {[%emt 0:00:21]} 1-0

[Event "EYCC G10-ch 2024"]
[Site "Prague"]
[Date "2024.08.28"]
[Round "6.12"]
[White "Mierina, Liva"]
[Black "Kocherha, Yelizavieta"]
[Result "0-1"]
[ECO "D45"]
[WhiteElo "1599"]
[BlackElo "1519"]
[Annotator "NA RC COMBH"]
[PlyCount "72"]
[EventDate "2024.08.19"]
[EventType "swiss"]
[EventCountry "CZE"]
[SourceTitle "playchess.com"]
[Source "ChessBase"]
[SourceQuality "1"]
[TimeControl "5400+30"]

1. d4 {[%emt 0:00:01]} d5 {[%emt 0:00:27]} 2. Nf3 {[%emt 0:00:11]} Nf6 {[%emt 0:02:05]} 3. c4 {[%emt 0:00:35]} e6 {[%emt 0:01:07]} 4. Nc3 {[%emt 0:04:02]} c6 {[%emt 0:00:32]} 5. e3 {[%emt 0:04:22]} Bb4 {[%emt 0:01:25]} 6. a3 {[%emt 0:01:13]} Bxc3+ {[%emt 0:00:45]} 7. bxc3 {[%emt 0:00:13]} Qa5 {[%emt 0:04:44]} 8. Bb2 Nbd7 9. cxd5 {[%emt 0:10:15]} exd5 {[%emt 0:04:12]} 10. g3 {[%emt 0:02:19]} Ne4 {[%emt 0:00:24]} 11. Qb3 {[%emt 0:06:35]} Ndf6 {[%emt 0:00:29]} 12. Bg2 {[%emt 0:02:36]} Qc7 {[%emt 0:05:54]} 13. Qb4 {[%emt 0:04:33]} c5 {[%emt 0:01:48]} 14. Qb5+ {[%emt 0:07:40]} Bd7 {[%emt 0:00:48]} 15. Qe2 {[%emt 0:02:17]} a6 {[%emt 0:02:03]} 16. Qc2 {[%emt 0:07:38]} Bb5 {[%emt 0:01:03]} 17. a4 {[%emt 0:01:33]} Bc4 {[%emt 0:00:51]} 18. Ne5 {[%emt 0:03:18]} cxd4 {[%emt 0:02:14]} 19. cxd4 {[%emt 0:06:43]} Qa5+ {[%emt 0:00:33]} 20. Kd1 {[%emt 0:01:06]} Bb3 {[%emt 0:00:47]} 21. Bc1 {[%emt 0:09:39]} Bxc2+ {[%emt 0:00:24]} 22. Kxc2 {[%emt 0:00:06]} Qc3+ {[%emt 0:00:32]} 23. Kb1 {[%emt 0:00:13]} Qb3+ {[%emt 0:01:01]} 24. Bb2 {[%emt 0:00:14]} Rc8 {[%emt 0:00:25]} 25. Ra3 {[%emt 0:00:47]} Qc2+ {[%emt 0:01:44]} 26. Ka1 {[%emt 0:00:18]} O-O {[%emt 0:02:52]} 27. Bxe4 {[%emt 0:04:14]} Nxe4 {[%emt 0:00:27]} 28. f4 {[%emt 0:00:33]} Nd2 {[%emt 0:01:00]} 29. h4 {[%emt 0:00:51]} f6 {[%emt 0:00:22]} 30. Ng4 {[%emt 0:02:19]} Rc4 {[%emt 0:00:40]} 31. Rc1 {[%emt 0:00:56]} Nb3+ {[%emt 0:01:08]} 32. Rxb3 {[%emt 0:00:47]} Qxb3 {[%emt 0:00:12]} 33. Rxc4 {[%emt 0:00:36]} Qxc4 {[%emt 0:00:14]} 34. h5 {[%emt 0:00:49]} Qxa4+ {[%emt 0:00:10]} 35. Kb1 {[%emt 0:00:04]} Qd1+ {[%emt 0:00:15]} 36. Bc1 {[%emt 0:00:18]} Rc8 {[%emt 0:00:35]} 0-1

[Event "EYCC G10-ch 2024"]
[Site "Prague"]
[Date "2024.08.28"]
[Round "6.13"]
[White "Isakhanyan, Nare"]
[Black "Volani, Olga"]
[Result "1-0"]
[ECO "D31"]
[WhiteElo "1512"]
[BlackElo "1570"]
[Annotator "NA RC COMBH"]
[PlyCount "103"]
[EventDate "2024.08.19"]
[EventType "swiss"]
[EventCountry "CZE"]
[SourceTitle "playchess.com"]
[Source "ChessBase"]
[SourceQuality "1"]
[TimeControl "5400+30"]

1. d4 {[%emt 0:00:02]} e6 {[%emt 0:00:05]} 2. c4 {[%emt 0:00:06]} d5 {[%emt 0:00:05]} 3. Nc3 {[%emt 0:00:04]} Be7 {[%emt 0:00:18]} 4. Nf3 {[%emt 0:00:11]} Nf6 {[%emt 0:00:11]} 5. cxd5 {[%emt 0:01:05]} exd5 {[%emt 0:00:11]} 6. Bg5 {[%emt 0:00:07]} c6 {[%emt 0:02:16]} 7. e3 {[%emt 0:00:13]} Bf5 {[%emt 0:02:12]} 8. Bd3 {[%emt 0:01:45]} Bxd3 {[%emt 0:00:53]} 9. Qxd3 {[%emt 0:00:07]} O-O {[%emt 0:01:09]} 10. O-O {[%emt 0:00:19]} Nbd7 {[%emt 0:05:53]} 11. Rab1 {[%emt 0:04:28]} a5 12. Qc2 {[%emt 0:08:02]} h6 {[%emt 0:08:34]} 13. Bh4 {[%emt 0:04:05]} Re8 {[%emt 0:08:53]} 14. a3 {[%emt 0:02:21]} Nf8 {[%emt 0:05:36]} 15. b4 {[%emt 0:03:23]} axb4 {[%emt 0:05:10]} 16. axb4 {[%emt 0:00:05]} Ng6 {[%emt 0:01:34]} 17. Bg3 {[%emt 0:11:23]} Qd7 {[%emt 0:11:03]} 18. Na4 {[%emt 0:06:32]} Bd8 {[%emt 0:07:50]} 19. Nc5 {[%emt 0:05:49]} Qe7 {[%emt 0:04:00]} 20. b5 {[%emt 0:03:03]} Ne4 {[%emt 0:07:11]} 21. Nxe4 Qxe4 {[%emt 0:05:13]} 22. Rfc1 {[%emt 0:25:27]} Qxc2 {[%emt 0:02:47]} 23. Rxc2 {[%emt 0:00:04]} Rc8 {[%emt 0:00:21]} 24. Rbc1 {[%emt 0:06:50]} Re6 {[%emt 0:01:24]} 25. Rc5 {[%emt 0:04:11]} Ra8 {[%emt 0:04:54]} 26. h4 {[%emt 0:02:06]} Be7 {[%emt 0:04:07]} 27. bxc6 {[%emt 0:03:23]} bxc6 {[%emt 0:04:30]} 28. Rxc6 {[%emt 0:00:19]} Rxc6 {[%emt 0:01:13]} 29. Rxc6 {[%emt 0:00:04]} Ra1+ {[%emt 0:00:06]} 30. Kh2 {[%emt 0:00:09]} Ra7 {[%emt 0:03:08]} 31. h5 {[%emt 0:03:07]} Nf8 {[%emt 0:01:00]} 32. Bd6 {[%emt 0:01:57]} Bxd6+ {[%emt 0:01:09]} 33. Rxd6 {[%emt 0:00:13]} Rd7 {[%emt 0:01:22]} 34. Ra6 {[%emt 0:03:46]} f6 {[%emt 0:01:55]} 35. Ne1 {[%emt 0:01:19]} Kf7 {[%emt 0:00:36]} 36. Nd3 {[%emt 0:00:07]} Ke7 {[%emt 0:00:54]} 37. Nf4 {[%emt 0:00:14]} Rd6 {[%emt 0:00:43]} 38. Ra5 {[%emt 0:00:44]} Ne6 {[%emt 0:00:30]} 39. Nxd5+ {[%emt 0:02:04]} Kd7 {[%emt 0:00:21]} 40. Nc3 {[%emt 0:00:25]} Rc6 {[%emt 0:00:25]} 41. Nb5 {[%emt 0:00:32]} Rb6 {[%emt 0:00:31]} 42. Ra7+ {[%emt 0:00:19]} Kc8 {[%emt 0:00:43]} 43. Nc3 {[%emt 0:00:16]} Nc7 {[%emt 0:00:21]} 44. Rxc7+ {[%emt 0:00:35]} Kd8 {[%emt 0:00:41]} 45. Rxg7 {[%emt 0:00:19]} Ra6 {[%emt 0:00:22]} 46. Rg6 {[%emt 0:00:15]} Ke7 {[%emt 0:00:30]} 47. Rxh6 {[%emt 0:00:13]} Kf7 {[%emt 0:00:13]} 48. Ne4 {[%emt 0:00:27]} Kg7 {[%emt 0:00:30]} 49. Rxf6 {[%emt 0:00:13]} Ra5 {[%emt 0:00:30]} 50. Rg6+ {[%emt 0:00:15]} Kf7 {[%emt 0:00:24]} 51. Rg5 {[%emt 0:00:14]} Ra6 {[%emt 0:00:12]} 52. d5 {[%emt 0:00:13]} 1-0